fUSD/lending_fUSD_20250109
["ID","MTS","AMOUNT","RATE_DAILY","PERIOD"]
[348199702,1736381449500,-500.0,0.00011642,2]
[348199703,1736381449511,-500.0,0.00011642,2]
[348199704,1736381449522,-500.0,0.00011642,2]
[348199705,1736381449532,-500.0,0.00011642,2]
[348199706,1736381449543,-669.18,0.00011642,2]
[348199707,1736381449554,-500.0,0.00011642,2]
[348199708,1736381449564,-1213.52,0.00011642,2]
[348199709,1736381449574,-1992.93,0.00011642,2]
[348199710,1736381449584,-811.59,0.00011642,2]
[348199711,1736381449595,-1025.32,0.00011642,2]
[348199712,1736381449605,-948.86,0.00011642,2]
[348199713,1736381449616,-1029.42,0.00011642,2]
[348199714,1736381449626,-684.45,0.00011642,2]
[348199715,1736381449636,-500.0,0.00011642,2]
[348199716,1736381449809,-1480.5,0.00011642,2]
[348199717,1736381449821,-580.61,0.00011643,2]
[348199718,1736381449831,-805.33,0.00011643,2]
[348199719,1736381449841,-919.5,0.00011643,2]
[348199720,1736381449851,-921.09,0.00011643,2]
[348199721,1736381449860,-1774.42,0.00011643,2]
[348199722,1736381449871,-987.62,0.00011643,2]
[348199723,1736381449880,-1490.41,0.00011643,2]
[348199724,1736381449890,-740.66,0.00011643,2]
[348199725,1736381449899,-596.51,0.00011643,2]
[348199726,1736381449909,-671.65,0.00011643,2]
[348199727,1736381449918,-500.0,0.00011643,2]
[348199728,1736381449929,-1039.3,0.00011643,2]
[348199729,1736381449939,-500.0,0.00011643,2]
[348199730,1736381449950,-1479.82,0.00011643,2]
[348199731,1736381449960,-826.12,0.00011643,2]
[348199732,1736381449970,-918.17,0.00011643,2]
[348199733,1736381449980,-150.0,0.00011647,2]
[348199734,1736381449989,-202.13626542,0.0001165,2]
[348199735,1736381449999,-618.194,0.0001168,2]
[348199736,1736381450008,-150.0,0.00011695,2]
[348199737,1736381450019,-1000.0,0.000117,2]
[348199738,1736381450028,-150.0,0.00011707,2]
[348199739,1736381450038,-150.0,0.00011778,2]
[348199740,1736381450047,-500.0,0.0001178,2]
[348199741,1736381450057,-500.0,0.0001178,2]
[348199742,1736381450066,-200.0,0.000118,2]
[348199743,1736381450076,-150.227652,0.00011812,2]
[348199744,1736381450086,-3011.921,0.0001188,2]
[348199745,1736381450096,-202.13626542,0.000119,2]
[348199746,1736381450106,-1425.24,0.00011914,2]
[348199747,1736381450116,-1365.85,0.00011914,2]
[348199748,1736381450125,-500.0,0.00011914,2]
[348199749,1736381450135,-500.0,0.00011914,2]
[348199750,1736381450145,-500.0,0.00011914,2]
[348199751,1736381450154,-1843.49,0.00011914,2]
[348199752,1736381450164,-500.0,0.00011914,2]
[348199753,1736381450175,-775.03,0.00011914,2]
[348199754,1736381450184,-662.82,0.00011914,2]
[348199755,1736381450193,-746.99,0.00011914,2]
[348199756,1736381450203,-500.0,0.00011914,2]
[348199757,1736381450212,-500.0,0.00011914,2]
[348199758,1736381450222,-1527.54,0.00011914,2]
[348199759,1736381450232,-185.494,0.00011915,2]
[348199760,1736381450241,-500.0,0.00011915,2]
[348199761,1736381450250,-500.0,0.00011915,2]
[348199762,1736381450260,-500.0,0.00011915,2]
[348199763,1736381450270,-500.0,0.00011915,2]
[348199764,1736381450280,-500.0,0.00011915,2]
[348199765,1736381450289,-500.0,0.00011915,2]
[348199766,1736381450299,-537.02,0.00011915,2]
[348199767,1736381450308,-500.0,0.00011915,2]
[348199768,1736381450317,-500.0,0.00011915,2]
[348199769,1736381450327,-500.0,0.00011915,2]
[348199770,1736381450336,-500.0,0.00011915,2]
[348199771,1736381450346,-500.0,0.00011915,2]
[348199772,1736381450355,-500.0,0.00011915,2]
[348199773,1736381450365,-500.0,0.00011915,2]
[348199774,1736381450375,-500.0,0.00011915,2]
[348199775,1736381450384,-500.0,0.00011915,2]
[348199776,1736381450393,-500.0,0.00011915,2]
[348199777,1736381450403,-500.0,0.00011915,2]
[348199778,1736381450413,-500.0,0.00011915,2]
[348199779,1736381450423,-500.0,0.00011915,2]
[348199780,1736381450433,-500.0,0.00011915,2]
[348199781,1736381450443,-516.94,0.00011915,2]
[348199782,1736381450453,-500.0,0.00011915,2]
[348199783,1736381450463,-500.0,0.00011915,2]
[348199784,1736381450473,-1621.87,0.00011915,2]
[348199785,1736381450482,-500.0,0.00011915,2]
[348199786,1736381450492,-432.72,0.00011915,2]
[348199787,1736381450502,-500.0,0.00011915,2]
[348199788,1736381450513,-500.0,0.00011915,2]
[348199789,1736381450522,-1925.36,0.00011915,2]
[348199790,1736381450532,-500.0,0.00011915,2]
[348199791,1736381450543,-500.0,0.00011915,2]
[348199792,1736381450552,-986.64769257,0.00011915,2]
[348199793,1736381450570,-935.00230743,0.00011915,2]
[348199794,1736381450579,-1164.11,0.00011915,2]
[348199795,1736381450590,-500.0,0.00011915,2]
[348199796,1736381450600,-500.0,0.00011915,2]
[348199797,1736381450609,-2067.12,0.00011915,2]
[348199798,1736381450619,-500.0,0.00011915,2]
[348199799,1736381450629,-1445.1,0.00011915,2]
[348199800,1736381450638,-500.0,0.00011915,2]
[348199801,1736381450647,-500.0,0.00011915,2]
[348199802,1736381450659,-500.0,0.00011915,2]
[348199803,1736381450669,-1152.65,0.00011915,2]
[348199804,1736381450678,-1663.57,0.00011915,2]
[348199805,1736381450688,-515.05,0.00011915,2]
[348199806,1736381450698,-858.35,0.00011915,2]
[348199807,1736381450707,-681.92,0.00011915,2]
[348199808,1736381450717,-500.0,0.00011915,2]
[348199809,1736381450727,-523.8,0.00011915,2]
[348199810,1736381450740,-1844.65,0.00011915,2]
[348199811,1736381450751,-500.0,0.00011915,2]
[348199812,1736381450760,-536.12,0.00011915,2]
[348199813,1736381450770,-1059.39,0.00011915,2]
[348199814,1736381450780,-1176.98,0.00011915,2]
[348199815,1736381450789,-509.03,0.00011915,2]
[348199816,1736381450800,-500.0,0.00011915,2]
[348199817,1736381450810,-1052.74,0.00011915,2]
[348199818,1736381450820,-1988.52,0.00011915,2]
[348199819,1736381450830,-500.0,0.00011915,2]
[348199820,1736381450840,-1033.18,0.00011915,2]
[348199821,1736381450850,-500.0,0.00011915,2]
[348199822,1736381450860,-500.0,0.00011915,2]
[348199823,1736381450869,-500.0,0.00011915,2]
[348199824,1736381450879,-500.0,0.00011916,2]
[348199825,1736381450888,-500.0,0.00011916,2]
[348199826,1736381450898,-625.35,0.00011916,2]
[348199827,1736381450908,-703.23,0.00011916,2]
[348199828,1736381450917,-224.96270172,0.00011916,2]
[348199829,1736381450926,-500.0,0.00011916,2]
[348199830,1736381450936,-500.0,0.00011916,2]
[348199831,1736381450946,-663.05,0.00011916,2]
[348199832,1736381450955,-1184.37,0.00011916,2]
[348199833,1736381450964,-511.9,0.00011916,2]
[348199834,1736381450973,-500.0,0.00011916,2]
[348199835,1736381450984,-500.0,0.00011916,2]
[348199836,1736381450993,-500.0,0.00011916,2]
[348199837,1736381451003,-464.312105,0.00011916,2]
[348199838,1736381451013,-500.0,0.00011916,2]
[348199839,1736381451023,-442.41899,0.00011916,2]
[348199840,1736381451032,-1377.0,0.00011916,2]
[348199841,1736381451043,-500.0,0.00011916,2]
[348199842,1736381451052,-500.0,0.00011916,2]
[348199843,1736381451061,-500.0,0.00011916,2]
[348199844,1736381451071,-1662.46,0.00011916,2]
[348199845,1736381451081,-500.0,0.00011916,2]
[348199846,1736381451090,-500.0,0.00011916,2]
[348199847,1736381451100,-500.0,0.00011916,2]
[348199848,1736381451110,-500.0,0.00011916,2]
[348199849,1736381451119,-669.18,0.00011916,2]
[348199850,1736381451129,-500.0,0.00011916,2]
[348199851,1736381451138,-1213.52,0.00011916,2]
[348199852,1736381451149,-1992.93,0.00011916,2]
[348199853,1736381451159,-811.59,0.00011916,2]
[348199854,1736381451169,-1025.32,0.00011916,2]
[348199855,1736381451179,-948.86,0.00011916,2]
[348199856,1736381451190,-1029.42,0.00011916,2]
[348199857,1736381451201,-684.45,0.00011916,2]
[348199858,1736381451211,-500.0,0.00011916,2]
[348199859,1736381451223,-1480.5,0.00011916,2]
[348199860,1736381451234,-580.61,0.00011917,2]
[348199861,1736381451245,-805.33,0.00011917,2]
[348199862,1736381451254,-919.5,0.00011917,2]
[348199863,1736381451264,-921.09,0.00011917,2]
[348199864,1736381451273,-1774.42,0.00011917,2]
[348199865,1736381451283,-987.62,0.00011917,2]
[348199866,1736381451292,-1490.41,0.00011917,2]
[348199867,1736381451302,-740.66,0.00011917,2]
[348199868,1736381451311,-596.51,0.00011917,2]
[348199869,1736381451320,-671.65,0.00011917,2]
[348199870,1736381451329,-500.0,0.00011917,2]
[348199871,1736381451339,-1039.3,0.00011917,2]
[348199872,1736381451349,-500.0,0.00011917,2]
[348199873,1736381451360,-1479.82,0.00011917,2]
[348199874,1736381451370,-826.12,0.00011917,2]
[348199875,1736381451381,-918.17,0.00011917,2]
[348199876,1736381451391,-429.70395169,0.00011931,2]
[348199877,1736381451401,-150.0,0.00012004,2]
[348199878,1736381451410,-150.0,0.00012035,2]
[348199879,1736381451421,-648.5004954,0.00012053,2]
[348199880,1736381451430,-200.0,0.00012055,2]
[348199881,1736381451440,-150.0,0.00012076,2]
[348199882,1736381451449,-365.0,0.000121,2]
[348199883,1736381451459,-1500.0,0.00012104,2]
[348199884,1736381451468,-202.13626542,0.0001215,2]
[348199885,1736381451478,-1425.24,0.00012188,2]
[348199886,1736381451489,-1365.85,0.00012188,2]
[348199887,1736381451499,-500.0,0.00012188,2]
[348199888,1736381451509,-500.0,0.00012188,2]
[348199889,1736381451519,-500.0,0.00012188,2]
[348199890,1736381451528,-1843.49,0.00012188,2]
[348199891,1736381451538,-500.0,0.00012188,2]
[348199892,1736381451547,-775.03,0.00012188,2]
[348199893,1736381451557,-662.82,0.00012188,2]
[348199894,1736381451567,-746.99,0.00012188,2]
[348199895,1736381451576,-500.0,0.00012188,2]
[348199896,1736381451586,-216.525,0.00012188,2]
[348199897,1736381451595,-1527.54,0.00012188,2]
[348199898,1736381451605,-500.0,0.00012189,2]
[348199899,1736381451615,-500.0,0.00012189,2]
[348199900,1736381451625,-500.0,0.00012189,2]
[348199901,1736381451635,-500.0,0.00012189,2]
[348199902,1736381451645,-500.0,0.00012189,2]
[348199903,1736381451658,-500.0,0.00012189,2]
[348199904,1736381451668,-537.02,0.00012189,2]
[348199905,1736381451678,-500.0,0.00012189,2]
[348199906,1736381451687,-500.0,0.00012189,2]
[348199907,1736381451698,-500.0,0.00012189,2]
[348199908,1736381451708,-500.0,0.00012189,2]
[348199909,1736381451717,-500.0,0.00012189,2]
[348199910,1736381451728,-500.0,0.00012189,2]
[348199911,1736381451737,-500.0,0.00012189,2]
[348199912,1736381451747,-500.0,0.00012189,2]
[348199913,1736381451757,-500.0,0.00012189,2]
[348199914,1736381451766,-500.0,0.00012189,2]
[348199915,1736381451776,-500.0,0.00012189,2]
[348199916,1736381451786,-500.0,0.00012189,2]
[348199917,1736381451796,-500.0,0.00012189,2]
[348199918,1736381451805,-500.0,0.00012189,2]
[348199919,1736381451814,-500.0,0.00012189,2]
[348199920,1736381451823,-1621.87,0.00012189,2]
[348199921,1736381451834,-500.0,0.00012189,2]
[348199922,1736381451845,-500.0,0.00012189,2]
[348199923,1736381451856,-500.0,0.00012189,2]
[348199924,1736381451866,-1925.36,0.00012189,2]
[348199925,1736381451875,-500.0,0.00012189,2]
[348199926,1736381451885,-500.0,0.00012189,2]
[348199927,1736381451894,-1921.65,0.00012189,2]
[348199928,1736381451904,-1164.11,0.00012189,2]
[348199929,1736381451913,-500.0,0.00012189,2]
[348199930,1736381451923,-500.0,0.00012189,2]
[348199931,1736381451932,-2067.12,0.00012189,2]
[348199932,1736381451942,-500.0,0.00012189,2]
[348199933,1736381451953,-1445.1,0.00012189,2]
[348199934,1736381451963,-500.0,0.00012189,2]
[348199935,1736381451973,-500.0,0.00012189,2]
[348199936,1736381451983,-320.58306265,0.00012189,2]
[348199937,1736381451992,-1152.65,0.00012189,2]
[348199938,1736381452001,-1663.57,0.00012189,2]
[348199939,1736381452011,-515.05,0.00012189,2]
[348199940,1736381452020,-858.35,0.00012189,2]
[348199941,1736381452030,-681.92,0.00012189,2]
[348199942,1736381452040,-509.27079329,0.00012189,2]
[348199943,1736381452050,-523.8,0.00012189,2]
[348199944,1736381452060,-1844.65,0.00012189,2]
[348199945,1736381452070,-500.0,0.00012189,2]
[348199946,1736381452079,-536.12,0.00012189,2]
[348199947,1736381452089,-1059.39,0.00012189,2]
[348199948,1736381452099,-1176.98,0.00012189,2]
[348199949,1736381452110,-509.03,0.00012189,2]
[348199950,1736381452119,-500.0,0.00012189,2]
[348199951,1736381452128,-1052.74,0.00012189,2]
[348199952,1736381452137,-1988.52,0.00012189,2]
[348199953,1736381452147,-500.0,0.00012189,2]
[348199954,1736381452205,-1033.18,0.00012189,2]
[348199955,1736381452214,-500.0,0.00012189,2]
[348199956,1736381452223,-553.99,0.00012189,2]
[348199957,1736381452232,-170.77,0.00012189,2]
[348199958,1736381452241,-500.0,0.0001219,2]
[348199959,1736381452251,-500.0,0.0001219,2]
[348199960,1736381452260,-625.35,0.0001219,2]
[348199961,1736381452269,-703.23,0.0001219,2]
[348199962,1736381452279,-500.0,0.0001219,2]
[348199963,1736381452288,-500.0,0.0001219,2]
[348199964,1736381452297,-663.05,0.0001219,2]
[348199965,1736381452306,-1184.37,0.0001219,2]
[348199966,1736381452315,-511.9,0.0001219,2]
[348199967,1736381452324,-500.0,0.0001219,2]
[348199968,1736381452334,-500.0,0.0001219,2]
[348199969,1736381452344,-500.0,0.0001219,2]
[348199970,1736381452355,-464.312105,0.0001219,2]
[348199971,1736381452364,-442.41899,0.0001219,2]
[348199972,1736381452373,-1377.0,0.0001219,2]
[348199973,1736381452383,-500.0,0.0001219,2]
[348199974,1736381452392,-500.0,0.0001219,2]
[348199975,1736381452401,-500.0,0.0001219,2]
[348199976,1736381452410,-1662.46,0.0001219,2]
[348199977,1736381452420,-500.0,0.0001219,2]
[348199978,1736381452429,-500.0,0.0001219,2]
[348199979,1736381452438,-500.0,0.0001219,2]
[348199980,1736381452447,-500.0,0.0001219,2]
[348199981,1736381452456,-669.18,0.0001219,2]
[348199982,1736381452466,-500.0,0.0001219,2]
[348199983,1736381452475,-1213.52,0.0001219,2]
[348199984,1736381452484,-1055.26417113,0.0001219,2]
[348199985,1736381452547,-500.0,0.00011093,2]
[348199986,1736381452557,-937.66582887,0.0001219,2]
[348199987,1736381452567,-165.907125,0.0001219,2]
[348199988,1736381452577,-174.117042,0.0001219,2]
[348199989,1736381452587,-811.59,0.0001219,2]
[348199990,1736381452597,-1025.32,0.0001219,2]
[348199991,1736381452607,-948.86,0.0001219,2]
[348199992,1736381452617,-1029.42,0.0001219,2]
[348199993,1736381452627,-684.45,0.0001219,2]
[348199994,1736381452637,-500.0,0.0001219,2]
[348199995,1736381452647,-1480.5,0.0001219,2]
[348199996,1736381452659,-160.557601,0.00012191,2]
[348199997,1736381452669,-160.557601,0.00012191,2]
[348199998,1736381452679,-580.61,0.00012191,2]
[348199999,1736381452689,-805.33,0.00012191,2]
[348200000,1736381452699,-919.5,0.00012191,2]
[348200001,1736381452708,-921.09,0.00012191,2]
[348200002,1736381452718,-1774.42,0.00012191,2]
[348200003,1736381452729,-987.62,0.00012191,2]
[348200004,1736381452740,-1490.41,0.00012191,2]
[348200005,1736381452749,-740.66,0.00012191,2]
[348200006,1736381452759,-596.51,0.00012191,2]
[348200007,1736381452769,-671.65,0.00012191,2]
[348200008,1736381452778,-500.0,0.00012191,2]
[348200009,1736381452788,-1039.3,0.00012191,2]
[348200010,1736381452798,-500.0,0.00012191,2]
[348200011,1736381452808,-1479.82,0.00012191,2]
[348200012,1736381452817,-826.12,0.00012191,2]
[348200013,1736381452826,-918.17,0.00012191,2]
[348200014,1736381452835,-150.0,0.00012192,2]
[348200015,1736381452845,-215.0,0.00012198,2]
[348200016,1736381452855,-216.55,0.00012198,2]
[348200017,1736381452864,-14711.98969577,0.000122,2]
[348200018,1736381452875,-364.3703331,0.000122,2]
[348200019,1736381452887,-3784.20105013,0.000122,2]
[348200020,1736381452896,-37886.282,0.000122,2]
[348200021,1736381452905,-266.3523318,0.000122,2]
[348200022,1736381452914,-2497.89091057,0.000122,2]
[348200023,1736381452923,-210.13,0.00012212,2]
[348200024,1736381452937,-400.0,0.0001227,2]
[348200025,1736381452946,-500.0,0.00012299,2]
[348200026,1736381452955,-908.0,0.00012299,2]
[348200027,1736381452964,-433546.30416757,0.000123,4]
[348200028,1736381452994,-351.8404,0.000123,4]
[348200029,1736381453007,-16083.46437022,0.000123,4]
[348200030,1736381453019,-247420.1203652,0.000123,4]
[348200031,1736381453029,-665690.36140567,0.000123,2]
[348200032,1736381453042,-385184.41546954,0.000123,2]
[348200033,1736381453055,-60945.0,0.000123,2]
[348200035,1736381530353,-1000.0,0.00013698,30]
[348200036,1736381530378,-1000.0,0.00013698,30]
[348200037,1736381530405,-1000.0,0.00013698,30]
[348200038,1736381530432,-1000.0,0.00013698,30]
[348200039,1736381530457,-1000.0,0.00013698,30]
[348200040,1736381530482,-1000.0,0.00013698,30]
[348200041,1736381530507,-1000.0,0.00013698,30]
[348200042,1736381530531,-1000.0,0.00013698,30]
[348200043,1736381530556,-1000.0,0.00013698,30]
[348200044,1736381530581,-1000.0,0.00013698,30]
[348200045,1736381530605,-1000.0,0.00013698,30]
[348200046,1736381530630,-1000.0,0.00013698,30]
[348200047,1736381530669,-1000.0,0.00013833,30]
[348200048,1736381545257,-1778.54,0.000143,31]
[348200049,1736381545286,-1778.54,0.000143,31]
[348200050,1736381545314,-1778.54,0.000143,31]
[348200051,1736381545342,-1778.54,0.000143,31]
[348200052,1736381545370,-1778.54,0.000143,31]
[348200053,1736381545398,-1778.54,0.000143,31]
[348200054,1736381545428,-1778.54,0.000143,31]
[348200055,1736381545459,-1778.54,0.000143,31]
[348200056,1736381545489,-1778.54,0.000143,31]
[348200057,1736381545520,-1778.54,0.000143,31]
[348200058,1736381545550,-1778.54,0.000143,31]
[348200059,1736381545580,-1778.54,0.000143,31]
[348200060,1736381545610,-1778.54,0.000143,31]
[348200061,1736381545638,-1778.54,0.000143,31]
[348200062,1736381545667,-1778.54,0.000143,31]
[348200063,1736381545697,-1778.54,0.000143,31]
[348200064,1736381555860,-1000.0,0.00014107,30]
[348200065,1736381555895,-1000.0,0.00014381,30]
[348200066,1736381555927,-397.97387832,0.00014655,30]
[348200067,1736381762597,-519.7,0.0001299,18]
[348200068,1736381805608,899.95,8.219e-05,2]
[348200092,1736382631834,-1003.98,9.53e-05,2]
[348200093,1736382631844,-2590.20469,9.613e-05,2]
[348200094,1736382631891,-4291.03248439,9.613e-05,2]
[348200095,1736382631900,-250.0,9.777e-05,2]
[348200096,1736382631910,-150.0,9.792e-05,2]
[348200097,1736382631919,-948.45156446,9.9e-05,2]
[348200098,1736382631952,-2200.0,9.9e-05,2]
[348200099,1736382632058,-1851.54843554,9.9e-05,2]
[348200100,1736382632281,-500.0,9.973e-05,2]
[348200102,1736382632291,-1000.0,9.978e-05,2]
[348200104,1736382632301,-500.0,9.998e-05,2]
[348200106,1736382632310,-500.0,9.998e-05,2]
[348200107,1736382632319,-810.4,9.998e-05,2]
[348200108,1736382632329,-1011.56,9.998e-05,2]
[348200109,1736382632338,-753.12,9.998e-05,2]
[348200110,1736382632346,-2751.86,9.998e-05,2]
[348200111,1736382632356,-500.0,9.998e-05,2]
[348200112,1736382632365,-500.0,9.998e-05,2]
[348200113,1736382632374,-1491.02,9.998e-05,2]
[348200114,1736382632383,-500.0,9.998e-05,2]
[348200115,1736382632392,-500.0,9.998e-05,2]
[348200117,1736382632401,-596.41,9.998e-05,2]
[348200119,1736382632410,-500.0,9.999e-05,2]
[348200121,1736382632420,-500.0,9.999e-05,2]
[348200123,1736382632429,-530.42,9.999e-05,2]
[348200125,1736382632438,-500.0,9.999e-05,2]
[348200127,1736382632447,-1000.0,9.999e-05,2]
[348200129,1736382632457,-500.0,9.999e-05,2]
[348200131,1736382632466,-500.0,9.999e-05,2]
[348200133,1736382632476,-1085.01,9.999e-05,2]
[348200136,1736382632486,-1155.41,9.999e-05,2]
[348200139,1736382632495,-462.62120003,9.999e-05,2]
[348200143,1736382632510,-37.37879997,9.999e-05,2]
[348200146,1736382632519,-500.0,9.999e-05,2]
[348200149,1736382632528,-500.0,9.999e-05,2]
[348200152,1736382632537,-309.39,9.999e-05,2]
[348200155,1736382632546,-1212.01,9.999e-05,2]
[348200158,1736382632555,-576.98,9.999e-05,2]
[348200160,1736382632564,-404.50127589,9.999e-05,2]
[348200163,1736382632581,-254.65339961,9.999e-05,2]
[348200381,1736382637739,-715.014534,9.999e-05,2]
[348200382,1736382637758,-18.2907905,9.999e-05,2]
[348200383,1736382637767,-708.09,9.999e-05,2]
[348200384,1736382637777,-500.0,9.999e-05,2]
[348200385,1736382637791,-1542.03,9.999e-05,2]
[348200386,1736382637802,-500.0,9.999e-05,2]
[348200387,1736382637812,-500.0,9.999e-05,2]
[348200388,1736382637822,-500.0,9.999e-05,2]
[348200389,1736382637831,-500.0,9.999e-05,2]
[348200390,1736382637841,-500.0,9.999e-05,2]
[348200391,1736382637854,-990.55,9.999e-05,2]
[348200392,1736382637864,-500.0,9.999e-05,2]
[348200393,1736382637875,-705.53,9.999e-05,2]
[348200394,1736382637885,-887.92,9.999e-05,2]
[348200395,1736382637894,-500.0,9.999e-05,2]
[348200396,1736382637904,-500.0,9.999e-05,2]
[348200397,1736382637914,-500.0,9.999e-05,2]
[348200398,1736382637924,-500.0,9.999e-05,2]
[348200399,1736382637933,-238.76918963,9.999e-05,2]
[348200400,1736382637946,-550.47081037,9.999e-05,2]
[348200401,1736382637955,-16028.25640738,0.0001,2]
[348200402,1736382637973,-16131.68368021,0.0001,2]
[348200403,1736382637985,-10260.26785067,0.0001,2]
[348200404,1736382638002,-108367.76852443,0.0001,2]
[348200405,1736382638081,-422134.62381793,0.0001,2]
[348200406,1736382638093,-8897.33288894,0.0001,2]
[348200441,1736382640251,-2676.11,9.999e-05,2]
[348200442,1736382640264,-298130.19882737,0.0001,2]
[348200443,1736382640278,-251.43202999,0.0001,2]
[348200446,1736382642890,-500.0,9.999e-05,2]
[348200447,1736382642902,-1994.99999999,0.0001,2]
[348200448,1736382642948,-1051.3558125,0.0001,2]
[348200449,1736382642962,-28600.0,0.0001,2]
[348200450,1736382642976,-2065.35439662,0.0001,2]
[348200451,1736382643071,-1973.4,0.0001,2]
[348200452,1736382643085,-4121.209504,0.0001,2]
[348200453,1736382643099,-1935.0,0.0001,2]
[348200454,1736382643113,-16570.2222918,0.0001,2]
[348200455,1736382643126,-21820.76331452,0.0001,2]
[348200458,1736382643139,-854.55749319,0.0001,2]
[348200521,1736382645849,-331.23114608,9.999e-05,2]
[348200522,1736382645905,-168.76885392,9.999e-05,2]
[348200523,1736382645916,-1523.45354322,0.0001,2]
[348200524,1736382645930,-440.0000011,0.0001,2]
[348200525,1736382645966,-614.94986279,0.0001,2]
[348200526,1736382645979,-565.134902,0.0001,2]
[348200527,1736382646028,-4501.37649062,0.0001,2]
[348200528,1736382646042,-610.19008711,0.0001,2]
[348200529,1736382646056,-1215.01816083,0.0001,2]
[348200530,1736382646071,-1837.79044697,0.0001,2]
[348200531,1736382646085,-4935.0,0.0001,2]
[348200532,1736382646103,-427.60348441,0.0001,2]
[348200620,1736382715063,962.97,8.219e-05,2]
[348200621,1736382902880,160.17502503,8.219e-05,30]
[348200634,1736383604039,914.82,8.219e-05,2]
[348200661,1736383832164,-250.0,8.709e-05,2]
[348200662,1736383832173,-163.52,8.921e-05,2]
[348200663,1736383832183,-167.35891067,8.956e-05,2]
[348200664,1736383832194,-37.31108933,8.956e-05,2]
[348200665,1736383832204,-317.89,9.017e-05,2]
[348200666,1736383832213,-200.70913556,9.093e-05,2]
[348200667,1736383832233,-1789.03086444,9.093e-05,2]
[348200668,1736383832243,-250.0,9.117e-05,2]
[348200669,1736383832252,-1791.25,9.148e-05,2]
[348200670,1736383832262,-165.42,9.187e-05,2]
[348200671,1736383832271,-300.0,9.19e-05,2]
[348200672,1736383832280,-300.0,9.19e-05,2]
[348200673,1736383832289,-401.05,9.19e-05,2]
[348200674,1736383832299,-800.0,9.2e-05,3]
[348200675,1736383832308,-150.0,9.233e-05,2]
[348200676,1736383832318,-300.0,9.248e-05,2]
[348200677,1736383832327,-743.09457783,9.249e-05,2]
[348200678,1736383832338,-256.90542217,9.249e-05,2]
[348200679,1736383832347,-255.27,9.249e-05,2]
[348200680,1736383832356,-250.0,9.295e-05,2]
[348200681,1736383832366,-1700.0,9.3e-05,3]
[348200682,1736383832376,-914.97457783,9.4e-05,3]
[348200683,1736383832390,-1685.02542217,9.4e-05,3]
[348200684,1736383832399,-1968.72457769,9.5e-05,3]
[348200685,1736383832410,-986.35646838,9.5e-05,3]
[348200686,1736383832421,-544.91895393,9.5e-05,3]
[348200687,1736383832431,-52.72368901,9.6e-05,3]
[348200688,1736383832441,-719.68076002,9.6e-05,3]
[348200689,1736383832459,-982.16718439,9.6e-05,3]
[348200690,1736383832494,-409.8822205,9.6e-05,3]
[348200691,1736383832514,-2235.54614608,9.6e-05,3]
[348200692,1736383832525,-981.97,9.608e-05,2]
[348200693,1736383832535,-1003.64465988,9.7e-05,2]
[348200694,1736383832548,-623.46374012,9.7e-05,2]
[348200695,1736383832558,-800.0,9.7e-05,3]
[348200696,1736383832568,-5000.0,9.7e-05,2]
[348200697,1736383832577,-500.0,9.799e-05,2]
[348200698,1736383832587,-494.82594686,9.799e-05,2]
[348200700,1736383832596,-633.64301266,9.799e-05,2]